Cogmind - Beta 12 X4 @@@ ROGUE MODE // 2023.01.14 @ 14:55:57 Player: Lunatic Blue Result: Destroyed by as-96983 with Assembled Focal Cannon Performance ------------- Evolutions (3) 1500 Regions Visited (12) 2400 Robots Destroyed (157) 785 Value Destroyed (4297) 4297 Prototype IDs (40) 800 Alien Tech Used (0) 0 Bonus (1760) 1760 TOTAL SCORE: 11542 Bonus ------- High Alert Combat Kills 33 Follower Combat Kills 127 Aligned with FarCom 300 Met Imprinter 300 Destroyed Z-Imprinter 1000 Cogmind --------- Core Integrity 0/700 Matter 68/300 Energy 310/310 System Corruption 0% Temperature Cool (21) Movement Treading (246) Ox1 Location -7/Deep Caves Parts ------- > --- POWER (1) -------- Heavy Deuterium Engine > --- PROPULSION (3) --- Light Treads Armored Treads Armored Treads > --- UTILITY (6) ------ Huge Storage Unit Advanced Signal Interpreter Experimental Targeting Computer > --- WEAPON (3) ------- Plasma Cannon > --- INVENTORY (25) --- Micro Fission Core Armored Treads Cooling System Improved Cooling System High-capacity Battery (250) Machine Analyzer Makeshift Sensor Array Advanced Signal Interpreter Zionite Heavy Carapace Makeshift Hacking Suite Makeshift Hacking Suite Advanced Hacking Suite AS-neutralizer No. 17b High-powered Field Laser Plasma Cannon Heavy Ion Cannon Heavy Assault Cannon Missile Launcher Makeshift Hammer Peak State ------------ > --- POWER ------------ Reinforced Fission Core > --- PROPULSION ------- Titanium Leg Advanced Myomer Leg Advanced Myomer Leg > --- UTILITY ---------- Experimental Heat Sink Cooling System Huge Storage Unit Experimental Targeting Computer > --- WEAPON ----------- Advanced Beam Cannon Heavy Particle Cannon Makeshift Hammer > --- INVENTORY -------- Heavy Ion Engine Light Nuclear Core Light Treads Light Treads Light Treads Light Treads Improved Treads High-capacity Battery Makeshift Sensor Array Makeshift Sensor Array Improved Signal Interpreter Advanced Targeting Computer Advanced Weapon Cycler Light Armor Plating Hardened Light Armor Plating 8R-AWN's Armor/EX System Shield Advanced Component Analysis Suite AS-neutralizer No. 17b Heavy Laser Heavy Laser Makeshift Shrapnel Gun [Rating: 61] Favorites ----------- Power Heavy Deuterium Engine Engine Heavy Deuterium Engine Power Core Reinforced Fission Core Propulsion Light Treads Treads Light Treads Leg Advanced Myomer Leg Wheel Armored Wheel Utility Huge Storage Unit Device Improved Cooling System Storage Huge Storage Unit Processor Experimental Targeting Computer Hackware System Shield Protection Light Armor Plating Weapon Plasma Cannon Energy Gun Arc Projector Energy Cannon Plasma Cannon Ballistic Gun Autogun Ballistic Cannon Light Cannon Launcher Missile Launcher Special Weapon Improved Remote Datajack Impact Weapon Makeshift Hammer Build | -11 -10 -10 -9 -9 -9 -8 -8 -7 -7 -7 -7 -7 ------- Run | Scr Mat Min Mat Min Exi Min Mat Fac Low Low Zio Dee Slots Evolved 6 | . . . 2 . . . 2 2 . . . . Power . | . . . . . . . . . . . . . Propulsion 1 | . . . 1 . . . . . . . . . Utility 4 | . . . . . . . 2 2 . . . . Weapon 1 | . . . 1 . . . . . . . . . Parts Attached 159 | 2 15 . 13 11 19 9 26 38 5 1 9 11 Power 9 | . 1 . . 1 1 . 3 2 . . . 1 Engine 6 | . 1 . . . . . 2 2 . . . 1 Core 3 | . . . . 1 1 . 1 . . . . . Reactor . | . . . . . . . . . . . . . Propulsion 31 | 2 3 . 2 3 6 2 5 6 . . . 2 Treads 22 | 1 1 . 2 3 4 . 3 6 . . . 2 Leg 6 | . . . . . 2 2 2 . . . . . Wheel 3 | 1 2 . . . . . . . . . . . Hover . | . . . . . . . . . . . . . Flight . | . . . . . . . . . . . . . Utility 40 | . 4 . . 1 5 1 5 9 2 1 8 4 Device 18 | . 1 . . . 4 1 2 4 1 1 3 1 Storage 2 | . 2 . . . . . . . . . . . Processor 7 | . . . . . . . 2 1 . . 4 . Hackware 1 | . . . . . . . . 1 . . . . Protection 12 | . 1 . . 1 1 . 1 3 1 . 1 3 Artifact . | . . . . . . . . . . . . . Weapon 79 | . 7 . 11 6 7 6 13 21 3 . 1 4 Energy Gun 10 | . . . . . . . 3 4 . . . 3 Energy Cannon 28 | . . . 3 . . 4 7 12 2 . . . Ballistic Gun 21 | . 4 . 7 4 6 . . . . . . . Ballistic Cannon 2 | . 2 . . . . . . . . . . . Launcher 12 | . . . . 2 1 2 2 3 1 . . 1 Special Weapon 1 | . . . . . . . . 1 . . . . Impact Weapon 5 | . 1 . 1 . . . 1 1 . . 1 . Slashing Weapon . | . . . . . . . . . . . . . Piercing Weapon . | . . . . . . . . . . . . . Special Melee Weapon . | . . . . . . . . . . . . . Unidentified Prototypes 14 | . . . 1 . 5 . 2 2 . . 3 1 Parts Lost 49 | . 1 . . 8 9 2 9 8 2 . . 10 Power 5 | . . . . 1 1 . . 2 . . . 1 Propulsion 16 | . 1 . . 3 4 1 1 4 . . . 2 Utility 11 | . . . . 2 1 . 2 1 1 . . 4 Weapon 17 | . . . . 2 3 1 6 1 1 . . 3 Highest Loss Streak 8 | . 1 . . 8 4 2 3 2 2 . . 6 To Critical Strikes 4 | . . . . . 4 . . . . . . . Average Slot Usage (%) 98 | . 99 100 99 97 96 98 99 98 99 100 99 92 Engine 6 | . 14 14 11 8 . . 3 7 7 7 7 7 Core 2 | . . . . 1 10 11 5 . . . . . Treads 22 | . 14 14 30 32 27 17 10 22 23 23 23 22 Leg 2 | . . . . . 4 14 16 . . . . . Wheel 1 | . 14 14 2 . . . . . . . . . Device 8 | . 10 . . . 5 11 15 11 13 15 11 2 Storage 9 | . 14 14 11 11 11 11 9 7 7 7 7 7 Processor 11 | . . . . . . . 9 17 23 23 26 21 Protection 4 | . 3 14 11 8 4 . 1 6 . . . 7 Energy Gun 1 | . . . . . . . 5 3 . . . 11 Energy Cannon 11 | . . . . . . 22 20 18 22 23 17 9 Ballistic Gun 10 | . 22 . 27 32 31 8 . . . . . . Ballistic Cannon 2 | . 5 28 3 . . . . . . . . . Naked Turns . | . . . . . . . . . . . . . Heaviest Build 131 | 12 94 94 97 97 113 113 117 128 119 120 120 131 Greatest Support 77 | 10 16 12 63 63 72 72 77 63 60 60 60 60 Greatest Overweight (x) 8 | 1 8 7 8 1 4 2 1 2 1 1 1 2 Average Overweight (x) 1 | 1 4 7 2 1 1 1 1 1 1 1 1 1 Largest Inventory Capacity 25 | 8 25 25 25 25 25 25 25 25 25 25 25 25 Average Capacity 24 | 8 21 25 25 25 25 25 25 25 25 25 25 25 Most Carried 25 | 6 18 24 25 25 25 24 25 25 25 24 25 25 Average Carried 22 | 4 13 19 23 23 20 22 23 24 24 23 24 23 Final Capacity 25 | 8 25 25 25 25 25 25 25 25 25 25 25 25 Final Carried 25 | 4 18 24 25 18 24 22 25 25 24 24 24 21 Class Distribution -------------------- 36% | Scavenger-Gunner 28% | Scavenger-Mutant 15% | Tank 13% | Mutant 3% | Scavenger-Skirmisher Dominant Class ---------------- Mutant | -10/Materials Mutant | -10/Mines Tank | -9/Materials Tank | -9/Mines Scavenger-Mutant | -9/Exiles Scavenger-Mutant | -8/Mines Scavenger-Gunner | -8/Materials Scavenger-Gunner | -7/Factory Scavenger-Gunner | -7/Lower Caves Scavenger-Gunner | -7/Lower Caves Scavenger-Mutant | -7/Zion Scavenger-Mutant | -7/Deep Caves Resources | -11 -10 -10 -9 -9 -9 -8 -8 -7 -7 -7 -7 -7 ----------- Run | Scr Mat Min Mat Min Exi Min Mat Fac Low Low Zio Dee Matter Collected 3425 | 220 274 82 619 114 839 212 326 476 96 41 52 74 Remotely . | . . . . . . . . . . . . . Salvage Created 5272 | . 581 . 736 86 553 292 1501 1389 104 . . 30 Parts 319 | . 40 . 47 7 69 18 73 63 1 . . 1 Haulers Intercepted 10 | . 1 . 3 . . . 3 3 . . . . Recyclers Shooed 4 | . . . . . . 1 2 1 . . . . Parts Field Recycled . | . . . . . . . . . . . . . Retrieved Matter . | . . . . . . . . . . . . . Parts Self-Destructed 4 | . . . . . . . . . 2 2 . . Prevented 1 | . . . . . . . . . . 1 . . Kills | -11 -10 -10 -9 -9 -9 -8 -8 -7 -7 -7 -7 -7 ------- Run | Scr Mat Min Mat Min Exi Min Mat Fac Low Low Zio Dee Combat Hostiles Destroyed 118 | . 18 . 10 11 5 14 30 24 3 . . 3 Melee 1 | . 1 . . . . . . . . . . . Guns 28 | . 14 . 8 2 1 . 2 1 . . . . Cannons 41 | . 2 . 2 . . 4 18 12 2 . . 1 AOE 43 | . . . . 9 4 9 8 10 1 . . 2 Classes Destroyed 21 | . 5 . 4 2 2 2 4 1 . . . 1 Worker 5 | . . . 1 . . . 2 2 . . . . Builder 2 | . . . . . . . 1 1 . . . . Tunneler 1 | . . . . . . . 1 . . . . . Hauler 10 | . 1 . 3 . . . 3 3 . . . . Recycler 5 | . . . 1 . . . 2 2 . . . . Mechanic 1 | . . . . . . . 1 . . . . . Operator 2 | . 1 . . . . . 1 . . . . . Turret 1 | . . . . . 1 . . . . . . . Watcher 12 | . 1 . 4 . . . 2 5 . . . . Swarmer 35 | . 9 . 2 4 . 7 7 6 . . . . Grunt 44 | . 9 . 4 . . 5 16 8 2 . . . Brawler 2 | . . . 1 . . . . . 1 . . . Duelist 2 | . . . . . . 1 . 1 . . . . Sentry 11 | . . . 3 . . . 6 2 . . . . Demolisher 1 | . . . . 1 . . . . . . . . Hunter 3 | . . . . . . 1 . 2 . . . . Programmer 4 | . . . . . . . . 4 . . . . Heavy 2 | . . . . . . . 1 1 . . . . Zionite 8 | . . . . . 8 . . . . . . . Z-Light 2 | . . . . . . . . . . . . 2 Assembled 10 | . . . . 6 4 . . . . . . . Best Kill Streak 14 | . 5 . 5 7 7 4 14 7 3 . . 3 Combat Bots Only 13 | . 5 . 3 7 4 4 13 6 3 . . 3 Max Kills in Single Turn 4 | . 2 . 2 3 2 2 4 4 1 . . 1 Gunslinging 1 | . 1 . . . . . . . . . . . Exploded 4 | . . . . 3 2 2 4 4 1 . . 1 Melee 1 | . 1 . . . . . . . . . . . Uniques/NPCs Destroyed 5 | . . . . . 4 . . . . . . 1 8R-AWN (-9/Exiles) EX-HEX (-9/Exiles) EX-DEC (-9/Exiles) EX-BIN (-9/Exiles) Z-Imprinter (-7/Deep Caves) Combat | -11 -10 -10 -9 -9 -9 -8 -8 -7 -7 -7 -7 -7 -------- Run | Scr Mat Min Mat Min Exi Min Mat Fac Low Low Zio Dee Damage Taken 9606 | . 603 36 459 874 1119 943 1423 1561 130 . . 2458 Core 1251 | . 110 8 29 56 58 130 126 155 17 . . 562 Absorbed by Shields . | . . . . . . . . . . . . . Regen/Repaired (Parts) 844 | . . . . . . . . . . . 844 . Core Remaining (%) 65 | 100 . 52 . . . 31 77 . . . . . Volleys Fired 377 | . 59 . 44 13 75 30 69 60 7 . . 20 Largest 3 | . 2 . 3 3 3 3 3 3 3 . . 2 Hottest 240 | . 70 . 70 69 76 204 213 240 225 . . 160 Shots Fired 864 | . 118 . 125 30 146 53 195 157 15 . . 25 Gun 445 | . 102 . 111 26 140 . 41 16 . . . 9 Cannon 367 | . 16 . 14 . . 41 149 132 13 . . 2 Launcher 51 | . . . . 4 6 12 5 8 2 . . 14 Special 1 | . . . . . . . . 1 . . . . Kinetic 409 | . 118 . 125 26 140 . . . . . . . Thermal 394 | . . . . . . 41 190 148 13 . . 2 Explosive 51 | . . . . 4 6 12 5 8 2 . . 14 Electromagnetic 9 | . . . . . . . . . . . . 9 Robot Hit Streak 24 | . 14 . 8 15 16 6 24 21 7 . . 8 Robot Miss Streak 5 | . 5 . 5 1 3 3 3 4 1 . . 1 Penetration Max . | . . . . . . . . . . . . . Secondary Targets 4 | . 2 . . 1 1 . . . . . . . Max Gunslinging Chain 1 | . 1 . . 1 1 . . . . . . . Shots Hit Robots 541 | . 82 . 66 25 97 25 127 100 11 . . 8 Core Hits 277 | . 28 . 25 17 47 20 68 54 5 . . 13 Critical Kills 3 | . . . 1 . 1 . . 1 . . . . Critical Parts Destroyed 3 | . 2 . . . 1 . . . . . . . Critical Strikes 10 | . 2 . 2 . 5 . . 1 . . . . Meltdown 1 | . . . . . . . . 1 . . . . Destroy 6 | . . . 1 . 5 . . . . . . . Blast 1 | . . . 1 . . . . . . . . . Smash 2 | . 2 . . . . . . . . . . . Melee Attacks 23 | . 8 . 3 . . . . 1 . . 11 . Impact 23 | . 8 . 3 . . . . 1 . . 11 . Slashing . | . . . . . . . . . . . . . Piercing . | . . . . . . . . . . . . . Sneak Attacks . | . . . . . . . . . . . . . Combat Hostiles . | . . . . . . . . . . . . . Follow-up Attacks . | . . . . . . . . . . . . . Damage Inflicted 15135 | . 937 . 1131 1161 1721 1270 3758 3707 465 . . 985 Guns 4121 | . 634 . 975 332 1434 . 534 159 . . . 53 Cannons 5677 | . 115 . 156 . . 536 2238 2350 257 . . 25 Explosions 5149 | . . . . 829 287 734 986 1198 208 . . 907 Melee 181 | . 181 . . . . . . . . . . . Ramming 7 | . 7 . . . . . . . . . . . Kinetic 3646 | . 749 . 1131 332 1434 . . . . . . . Thermal 6099 | . . . . . . 536 2772 2509 257 . . 25 Explosive 5149 | . . . . 829 287 734 986 1198 208 . . 907 Electromagnetic 53 | . . . . . . . . . . . . 53 Impact 181 | . 181 . . . . . . . . . . . Slashing . | . . . . . . . . . . . . . Piercing . | . . . . . . . . . . . . . Highest Corruption 2 | . . . . . . . . 2 2 2 2 . Average Corruption 2 | . . . . . . . . 2 2 2 2 . Corruption Purged . | . . . . . . . . . . . . . Corruption Blocked 8 | . . . . . . . . 8 . . . . Effects 28 | . . . . . . . . 4 8 14 2 . Message Errors 5 | . . . . . . . . 2 1 2 . . Matter Fused 12 | . . . . . . . . . 4 8 . . Heat Flow Errors 4 | . . . . . . . . 1 1 1 1 . Energy Discharges 6 | . . . . . . . . 1 1 3 1 . Data Loss (minor) 1 | . . . . . . . . . 1 . . . Overload Shots . | . . . . . . . . . . . . . Overflow Damage 398 | . 58 . . 18 6 51 49 110 15 . . 91 Projectiles 191 | . 3 . . . . 19 34 103 13 . . 19 Explosions 152 | . . . . 18 6 32 15 7 2 . . 72 Melee 55 | . 55 . . . . . . . . . . . Knockbacks 2 | . . . 2 . . . . . . . . . Impact . | . . . . . . . . . . . . . Kinetic 2 | . . . 2 . . . . . . . . . Secondary . | . . . . . . . . . . . . . Self-Inflicted Damage 412 | . 3 . . 79 . 124 160 11 35 . . . Shots 14 | . . . . 4 . 3 5 1 1 . . . Rammed 1 | . 1 . . . . . . . . . . . Targets Rammed 1 | . 1 . . . . . . . . . . . Kicked . | . . . . . . . . . . . . . Crushed . | . . . . . . . . . . . . . Highest Temperature 416 | . 54 . 116 44 32 377 416 306 224 221 180 216 Average Temperature 76 | . 14 . 36 18 13 180 77 92 88 115 99 99 Received Heat Transfer 1965 | . 264 9 153 81 . 261 414 321 54 . . 408 Effects 6 | . . . . . . 2 3 . 1 . . . Energy Bleed 1 | . . . . . . . 1 . . . . . Interference 3 | . . . . . . 2 . . 1 . . . Matter Decay 1 | . . . . . . . 1 . . . . . Damage (minor) 1 | . . . . . . . 1 . . . . . Siege Activations . | . . . . . . . . . . . . . Robots Corrupted . | . . . . . . . . . . . . . Combat Hostiles . | . . . . . . . . . . . . . Parts Fried . | . . . . . . . . . . . . . Impact Corruptions 2 | . 2 . . . . . . . . . . . Robots Melted 6 | . . . . . . 1 2 3 . . . . Combat Hostiles 4 | . . . . . . 1 2 1 . . . . Parts Melted 40 | . . . . . . 5 15 19 1 . . . Heat Transferred 11015 | . . . . . . 962 4810 4757 474 . . 12 Parts Sabotaged . | . . . . . . . . . . . . . Parts Stolen . | . . . . . . . . . . . . . Parts Stripped . | . . . . . . . . . . . . . Power Chain Reactions . | . . . . . . . . . . . . . Missiles Intercepted . | . . . . . . . . . . . . . Alert | -11 -10 -10 -9 -9 -9 -8 -8 -7 -7 -7 -7 -7 ------- Run | Scr Mat Min Mat Min Exi Min Mat Fac Low Low Zio Dee Peak Influence 495 | . 296 284 251 214 . 226 495 395 . . . . Initial 102 | . . 102 48 73 . . 81 91 . . . . Average 160 | . 171 129 119 142 . 117 196 186 . . . . Maximum Alert Level 2 | . 1 1 1 1 . 1 2 1 . . . . Low Security (%) 68 | 100 55 97 96 39 . 68 67 57 . . . . Level 1 29 | . 44 2 3 60 . 31 20 42 . . . . Level 2 2 | . . . . . . . 12 . . . . . Level 3 . | . . . . . . . . . . . . . Level 4 . | . . . . . . . . . . . . . Level 5 . | . . . . . . . . . . . . . High Security . | . . . . . . . . . . . . . Max Security . | . . . . . . . . . . . . . Squads Dispatched 14 | . 5 . . . . . 6 3 . . . . Investigation 4 | . 3 . . . . . 1 . . . . . Extermination 1 | . . . . . . . . 1 . . . . Reinforcement 8 | . 2 . . . . . 4 2 . . . . Assault . | . . . . . . . . . . . . . Garrison 1 | . . . . . . . 1 . . . . . Intercept . | . . . . . . . . . . . . . Searches Triggered . | . . . . . . . . . . . . . Construction Impeded . | . . . . . . . . . . . . . Haulers Reinforced . | . . . . . . . . . . . . . Active Scanning Responses . | . . . . . . . . . . . . . Cargo Convoy Interrupts 1 | . . . . . . . . 1 . . . . Stealth | -11 -10 -10 -9 -9 -9 -8 -8 -7 -7 -7 -7 -7 --------- Run | Scr Mat Min Mat Min Exi Min Mat Fac Low Low Zio Dee Distress Signals 8 | . . . 3 1 . . 2 2 . . . . Communications Jammed . | . . . . . . . . . . . . . Distress Signals . | . . . . . . . . . . . . . Times Spotted 186 | . 28 7 20 22 21 12 37 32 3 . . 4 Peak Tracking Total 13 | . 5 3 3 13 9 4 12 5 3 . . 3 Tactical Retreats 6 | . . . 2 1 3 . . . . . . . Traps | -11 -10 -10 -9 -9 -9 -8 -8 -7 -7 -7 -7 -7 ------- Run | Scr Mat Min Mat Min Exi Min Mat Fac Low Low Zio Dee Traps Triggered 7 | . 1 . . . . . . 6 . . . . Indirectly . | . . . . . . . . . . . . . Trap Hack Attempts . | . . . . . . . . . . . . . Triggered . | . . . . . . . . . . . . . Disarmed . | . . . . . . . . . . . . . Reprogrammed 1 | . . . . . . . 1 . . . . . Reused 3 | . . . . . 3 . . . . . . . Traps Extracted . | . . . . . . . . . . . . . Installed 3 | . . . . . 3 . . . . . . . Triggered 5 | . . . . . . . . 2 2 1 . . Most Traps Carried 3 | . . 3 3 3 3 . . . . . . . Exploded 2 | . . . . . 2 . . . . . . . Machines | -11 -10 -10 -9 -9 -9 -8 -8 -7 -7 -7 -7 -7 ---------- Run | Scr Mat Min Mat Min Exi Min Mat Fac Low Low Zio Dee Machines Disabled 17 | . . . . 2 7 1 4 1 . . . 2 Max in Single Turn 2 | . . . . 1 1 1 2 1 . . . . Garrison Access 2 | . . . . . . . 1 1 . . . . Machines Sabotaged . | . . . . . . . . . . . . . Overloaded Fab Kills . | . . . . . . . . . . . . . Hacking | -11 -10 -10 -9 -9 -9 -8 -8 -7 -7 -7 -7 -7 --------- Run | Scr Mat Min Mat Min Exi Min Mat Fac Low Low Zio Dee Machines Accessed 33 | . 7 . 5 . 2 3 8 6 2 . . . Terminals 22 | . 5 . 5 . . 3 6 2 1 . . . Fabricators 2 | . . . . . . . . 2 . . . . Repair Stations . | . . . . . . . . . . . . . Recycling Units 3 | . 2 . . . . . 1 . . . . . Scanalyzers 1 | . . . . . . . . 1 . . . . Garrison Access 2 | . . . . . . . 1 1 . . . . Total Hacks 91 | . 25 . 13 . 2 6 24 19 2 . . . Successful 52 | . 17 . 9 . 2 5 10 7 2 . . . Failed 39 | . 8 . 4 . . 1 14 12 . . . . Catastrophic 3 | . . . 1 . . . 1 1 . . . . Database Lockouts . | . . . . . . . . . . . . . Manual 24 | . 13 . 2 . 1 3 3 2 . . . . Terminals 66 | . 21 . 13 . . 6 21 4 1 . . . Fabricators 4 | . . . . . . . . 4 . . . . Repair Stations . | . . . . . . . . . . . . . Recycling Units 6 | . 4 . . . . . 2 . . . . . Scanalyzers 9 | . . . . . . . . 9 . . . . Garrison Access 3 | . . . . . . . 1 2 . . . . Terminal Hacks 33 | . 9 . 7 . 2 4 9 . 2 . . . Record 2 | . . . . . 1 . . . 1 . . . Part Schematic 1 | . 1 . . . . . . . . . . . Prototype ID Bank 1 | . . . . . . . 1 . . . . . Open Door 1 | . . . . . . . . . 1 . . . Level Access Points 1 | . . . . . . 1 . . . . . . Branch Access Points 3 | . 1 . 1 . . . 1 . . . . . Emergency Access Points 2 | . 1 . 1 . . . . . . . . . Terminal Index 1 | . 1 . . . . . . . . . . . Alert Level 2 | . . . 1 . . . 1 . . . . . Unreport Threat 3 | . . . . . . . 3 . . . . . Locate Traps 2 | . 1 . . . . . 1 . . . . . Reprogram Traps 1 | . . . . . . . 1 . . . . . Dispatch Records 3 | . . . 1 . . 2 . . . . . . Maintenance Status 1 | . . . 1 . . . . . . . . . Patrol Status 1 | . 1 . . . . . . . . . . . Hauler Manifests 1 | . 1 . . . . . . . . . . . Registered Prototypes 1 | . . . 1 . . . . . . . . . Zone Layout 5 | . 2 . 1 . . 1 1 . . . . . EX-Prototype ID Bank 1 | . . . . . 1 . . . . . . . Fabricator Hacks 1 | . . . . . . . . 1 . . . . Network Status 1 | . . . . . . . . 1 . . . . Repair Station Hacks . | . . . . . . . . . . . . . Recycling Unit Hacks 2 | . 2 . . . . . . . . . . . Retrieve Components 2 | . 2 . . . . . . . . . . . Scanalyzer 5 | . . . . . . . . 5 . . . . Insert Component 3 | . . . . . . . . 3 . . . . Analyze 2 | . . . . . . . . 2 . . . . Garrison Access Hacks 2 | . . . . . . . 1 1 . . . . Seal Access 2 | . . . . . . . 1 1 . . . . Unauthorized Hacks 9 | . 6 . 2 . . 1 . . . . . . Terminals 7 | . 4 . 2 . . 1 . . . . . . Botnet 6 | . 3 . 2 . . 1 . . . . . . Operators 1 | . 1 . . . . . . . . . . . Fabricators . | . . . . . . . . . . . . . Repair Stations . | . . . . . . . . . . . . . Recycling Units 2 | . 2 . . . . . . . . . . . Tunnel 2 | . 2 . . . . . . . . . . . Scanalyzers . | . . . . . . . . . . . . . Garrison Access . | . . . . . . . . . . . . . Data Cores Recovered . | . . . . . . . . . . . . . Used . | . . . . . . . . . . . . . Hacking Detections 24 | . 4 . 5 . . 3 7 5 . . . . Full Trace Events 3 | . 1 . . . . . 2 . . . . . Feedback Events . | . . . . . . . . . . . . . Feedback Blocked . | . . . . . . . . . . . . . Robot Schematics Acquired 3 | . . . . . . . . . . . 3 . Robots Built . | . . . . . . . . . . . . . Authchips . | . . . . . . . . . . . . . Time . | . . . . . . . . . . . . . Total Robot Build Rating . | . . . . . . . . . . . . . Part Schematics Acquired 16 | . 1 . . . . . . . . . 15 . Parts Built . | . . . . . . . . . . . . . Authchips . | . . . . . . . . . . . . . Time . | . . . . . . . . . . . . . Total Part Build Rating . | . . . . . . . . . . . . . Parts Repaired . | . . . . . . . . . . . . . Time . | . . . . . . . . . . . . . Parts Recycled . | . . . . . . . . . . . . . Recycled Matter . | . . . . . . . . . . . . . Retrieved Matter . | . . . . . . . . . . . . . Retrieved Components 11 | . 11 . . . . . . . . . . . Parts Scanalyzed 2 | . . . . . . . . 2 . . . . Part Schematics Acquired . | . . . . . . . . . . . . . Parts Damaged . | . . . . . . . . . . . . . Bothacking | -11 -10 -10 -9 -9 -9 -8 -8 -7 -7 -7 -7 -7 ------------ Run | Scr Mat Min Mat Min Exi Min Mat Fac Low Low Zio Dee Used RIF Installer . | . . . . . . . . . . . . . Robots Hacked . | . . . . . . . . . . . . . Non-combat . | . . . . . . . . . . . . . Combat . | . . . . . . . . . . . . . Robot Hacks Applied . | . . . . . . . . . . . . . Relay Couplers Released 3 | . . . . . . . . 3 . . . . Programmers 3 | . . . . . . . . 3 . . . . Fabnet Peak Effective % . | . . . . . . . . . . . . . Robots Rewired . | . . . . . . . . . . . . . Allies Hacked . | . . . . . . . . . . . . . Hacks Repelled . | . . . . . . . . . . . . . Allies | -11 -10 -10 -9 -9 -9 -8 -8 -7 -7 -7 -7 -7 -------- Run | Scr Mat Min Mat Min Exi Min Mat Fac Low Low Zio Dee Total Allies 8 | . . 5 . . . . . . . . 3 . Largest Group 5 | . . 5 4 . . . . . . . 3 3 Highest-Rated Group 81 | . . 81 50 . . . . . . . 79 79 Highest-Rated Ally 51 | . . 31 16 . . . . . . . 51 51 Total Orders . | . . . . . . . . . . . . . Ally Attacks 60 | . . 21 9 . . . . . . . . 30 Total Damage 1219 | . . 260 88 . . . . . . . . 871 Kills 14 | . . 8 1 . . . . . . . . 5 Allies Corrupted . | . . . . . . . . . . . . . Allies Melted . | . . . . . . . . . . . . . Intel | -11 -10 -10 -9 -9 -9 -8 -8 -7 -7 -7 -7 -7 ------- Run | Scr Mat Min Mat Min Exi Min Mat Fac Low Low Zio Dee Robot Analysis Total . | . . . . . . . . . . . . . Derelict Logs Recovered 4 | . . 2 . . . . . . . 2 . . Drone Launches . | . . . . . . . . . . . . . Drone Recoveries . | . . . . . . . . . . . . . Exploration | -11 -10 -10 -9 -9 -9 -8 -8 -7 -7 -7 -7 -7 ------------- Run | Scr Mat Min Mat Min Exi Min Mat Fac Low Low Zio Dee Turns Passed 14796 | 7 1059 752 1068 640 2215 670 1410 1772 896 974 2163 1170 Spaces Moved 5807 | 5 516 376 372 249 846 279 550 605 361 404 882 362 Core . | . . . . . . . . . . . . . Treads 4024 | . . . 270 249 658 80 153 605 361 404 882 362 Legs 784 | . . . . . 188 199 397 . . . . . Wheels 999 | 5 516 376 102 . . . . . . . . . Hover . | . . . . . . . . . . . . . Flight . | . . . . . . . . . . . . . Fastest Speed 95 | 95 95 195 195 240 190 190 190 240 240 240 240 240 Average Speed 227 | 95 156 195 229 240 231 208 204 244 240 240 240 305 Slowest Speed 480 | 95 200 195 240 240 480 320 240 320 240 240 240 323 Overloaded Moves . | . . . . . . . . . . . . . Propulsion Burnouts . | . . . . . . . . . . . . . Robots Hopped . | . . . . . . . . . . . . . Cave-ins Triggered . | . . . . . . . . . . . . . Exploration Rate (%) 56 | 2 81 79 32 56 88 59 62 22 53 54 85 60 Regions Visited 12 Branch Regions 8 Pre-discovered Areas 6 | . 2 1 . . 1 . . . . 1 1 . Known Exits Taken 8 | . 1 . 1 . . 1 1 1 1 1 1 . Unknown Exits Taken 4 | 1 . 1 . 1 1 . . . . . . . Scrap Searched 8 | . . 1 . . . 1 . . 1 . 5 . Spaces Dug 61 | . . . 1 . . 16 7 12 10 . 3 12 Terrain Destroyed 337 | . . . 1 44 25 103 43 40 24 . 3 54 Melee 5 | . . . 1 . . . . 1 . . 3 . Projectile 27 | . . . . . 9 4 12 2 . . . . AOE 305 | . . . . 44 16 99 31 37 24 . . 54 Terrain Rammed . | . . . . . . . . . . . . . Walls Destroyed . | . . . . . . . . . . . . . Machines Disabled . | . . . . . . . . . . . . . Actions | -11 -10 -10 -9 -9 -9 -8 -8 -7 -7 -7 -7 -7 --------- Run | Scr Mat Min Mat Min Exi Min Mat Fac Low Low Zio Dee Total 6710 | 8 651 395 515 272 981 319 689 774 378 409 920 399 Wait 115 | . 30 14 40 . 3 . 4 22 . 2 . . Move 5795 | 4 515 375 371 248 845 278 549 604 360 403 881 362 Hop . | . . . . . . . . . . . . . Pick Up 121 | . 14 6 18 . 18 1 24 22 3 1 10 4 Fast Attach 39 | . 4 . 11 . 7 . 3 12 . . 2 . Attach 61 | 2 1 . 2 7 10 2 13 12 1 1 3 7 Detach 10 | . 1 . . . 7 . . 1 . . . 1 Swap 60 | . 10 . . 4 2 7 10 15 4 . 4 4 Drop 99 | 2 8 . 26 . 11 1 17 21 3 . 9 1 Fire 377 | . 59 . 44 13 75 30 69 60 7 . . 20 Melee 23 | . 8 . 3 . . . . 1 . . 11 . Ram 1 | . 1 . . . . . . . . . . . Kick . | . . . . . . . . . . . . . Crush . | . . . . . . . . . . . . . Escape Stasis 4 | . . . . . . . . 4 . . . . Rewire 2 | . . . . . . . . . . 2 . . Trap 3 | . . . . . 3 . . . . . . . Miscellaneous . | . . . . . . . . . . . . . Route ------- -11/Scrapyard -10/Materials (discovered 3 exits: *Mat x2 / *Min) -10/Mines (discovered 2 exits: *Mat x2) -9/Materials -9/Mines (discovered 2 exits: *Mat / *Exi) -9/Exiles -8/Mines (discovered 2 exits: *Mat x2) -8/Materials -7/Factory (discovered 2 exits: *Low x2) -7/Lower Caves -7/Lower Caves -7/Zion (discovered 2 exits: *Dee / [*Pro]) -7/Deep Caves History --------- Turn | Location | Event 5 | -11/Scrapyard | Discovered new exit (range 3) 8 | -11/Scrapyard | Entered Materials 72 | -10/Materials | Identified exit to Mines 318 | -10/Materials | Build established: Mutant 404 | -10/Materials | Discovered new exit (range 18) 897 | -10/Materials | Discovered new exit (range 13) 1067 | -10/Materials | Entered Mines 1132 | -10/Mines | Discovered new exit (range 15) 1153 | -10/Mines | Assisted by bots powering up and referring to "LRC-V3" 1506 | -10/Mines | Learned location of Storage (-7) 1548 | -10/Mines | Discovered new exit (range 7) 1566 | -10/Mines | Found a hidden stash of uninstalled traps 1692 | -10/Mines | Learned Materials terminal intel 1819 | -10/Mines | Entered Materials 1819 | -9/Materials | Accompanied by 4 allies 1819 | -9/Materials | Evolved 2 slots: Propulsion x1, Weapon x1 1820 | -9/Materials | Loaded intel: 12 terminal locations 2159 | -9/Materials | Identified exit to Mines 2286 | -9/Materials | Build established: Tank 2887 | -9/Materials | Entered Mines 3028 | -9/Mines | Deemed a non-threat by the Exiles lab entrance 3030 | -9/Mines | Discovered new exit (range 5) 3191 | -9/Mines | Discovered new exit (range 7) 3365 | -9/Mines | Assembled infested the area 3426 | -9/Mines | Destroyed 7 combat bots 3448 | -9/Mines | Lost 8 parts (1p3n2u2w) 3527 | -9/Mines | Entered Exiles 3590 | -9/Exiles | Met 8R-AWN 3629 | -9/Exiles | Met EX-HEX 3702 | -9/Exiles | Met EX-BIN 3776 | -9/Exiles | Met EX-DEC 4053 | -9/Exiles | Learned location of Zion (-7) 4300 | -9/Exiles | Aligned with FarCom system 4303 | -9/Exiles | Given EX-Vault access code 4358 | -9/Exiles | Opened EX-Vault 4413 | -9/Exiles | Warned to stay clear of 0b10 Research branches 4505 | -9/Exiles | Attacked by the Exiles 4626 | -9/Exiles | Found Prototype Ballistic Gun 4626 | -9/Exiles | Identified 8R-AWN's Boregun 4640 | -9/Exiles | Lost 4 parts (1u3w) 4669 | -9/Exiles | Destroyed 8R-AWN 4683 | -9/Exiles | Lost 3 parts (1p2n) 4725 | -9/Exiles | Found Prototype Processor 4732 | -9/Exiles | Found Prototype Device 4738 | -9/Exiles | Found Prototype Protection 4739 | -9/Exiles | Identified AS-neutralizer No. 17b 4937 | -9/Exiles | Destroyed EX-HEX 4968 | -9/Exiles | Destroyed EX-DEC 5001 | -9/Exiles | Destroyed EX-BIN 5008 | -9/Exiles | Build established: Scavenger-Mutant 5626 | -9/Exiles | Discovered new exit (range 14) 5742 | -9/Exiles | Entered Mines 5937 | -8/Mines | Core integrity fell below 50% 6266 | -8/Mines | Identified exit to Materials 6412 | -8/Mines | Entered Materials 6412 | -8/Materials | Evolved 2 slots: Utility x2 6413 | -8/Materials | Identified Exp. Targeting Computer 6719 | -8/Materials | Build established: Scavenger-Gunner 7010 | -8/Materials | Garrison activated, responded to threat 7046 | -8/Materials | Lost 3 parts (3w) 7063 | -8/Materials | Destroyed 13 combat bots 7714 | -8/Materials | Discovered new exit (range 12) 7820 | -8/Materials | Identified exit to Factory 7822 | -8/Materials | Entered Factory 7822 | -7/Factory | Evolved 2 slots: Utility x2 8108 | -7/Factory | Build established: Scavenger-Skirmisher 8259 | -7/Factory | Identified 8R-AWN's Armor/EX 8573 | -7/Factory | Cargo convoy interrupted 8740 | -7/Factory | Build established: Scavenger-Gunner 8862 | -7/Factory | Discovered new exit (range 14) 9069 | -7/Factory | Identified exit to Lower Caves 9139 | -7/Factory | Found Prototype Device 9315 | -7/Factory | Discovered exit to Lower Caves (range 15) 9594 | -7/Factory | Entered Lower Caves 9873 | -7/Lower Caves | Found Prototype Device 10448 | -7/Lower Caves | Discovered new exit (range 11) 10488 | -7/Lower Caves | Identified exit to Lower Caves 10490 | -7/Lower Caves | Entered another Lower Caves area 10934 | -7/Lower Caves | Discovered new exit (range 13) 10965 | -7/Lower Caves | Identified exit to Zion 11464 | -7/Lower Caves | Entered Zion 11548 | -7/Zion | System corruption cleaned by Quarantine Array 11594 | -7/Zion | Given the Hacking Drone Bay 11594 | -7/Zion | Found Prototype Device 11665 | -7/Zion | Received a hallucinogenic algorithm 11734 | -7/Zion | Discovered new exit (range 9) 12302 | -7/Zion | Build established: Scavenger-Mutant 12388 | -7/Zion | Found Prototype Device 12395 | -7/Zion | Identified Bomb Factory No. 2 12570 | -7/Zion | Gained Derelict followers 12622 | -7/Zion | Found Exp. Targeting Computer 12644 | -7/Zion | Found Prototype Processor 12645 | -7/Zion | Identified Exp. Terrain Scan Processor 12654 | -7/Zion | Found Prototype Processor 12654 | -7/Zion | Identified Exp. Melee Analysis Suite 12717 | -7/Zion | Visited the Megawrench Repair Shop 12717 | -7/Zion | Megawrench repaired 10 parts 13612 | -7/Zion | Discovered new exit (range 4) 13614 | -7/Zion | Saw the warning signs outside the Deep Caves entrance 13619 | -7/Zion | Identified exit to Deep Caves 13627 | -7/Zion | Entered Deep Caves 13627 | -7/Deep Caves | Accompanied by 3 allies 13795 | -7/Deep Caves | Z-Facility disabled 13804 | -7/Deep Caves | Attacked by Z-Imprinter 13837 | -7/Deep Caves | Destroyed Z-Imprinter 14258 | -7/Deep Caves | Found Prototype Protection 14770 | -7/Deep Caves | Spotted as-96983 14775 | -7/Deep Caves | Core integrity fell below 50% 14791 | -7/Deep Caves | Core integrity fell below 20% 14797 | -7/Deep Caves | Destroyed by as-96983 with Assembled Focal Cannon Last Messages --------------- 13903_ Acquired 11 matter. 13910_ Acquired Corrupted Mak. Hacking Suite. 13924_ Acquired Mak. Hacking Suite. 13942_ Z-Power explodes. 13942_ ZC-PXN(p) destroyed. 13942_ AE-M5H(s) destroyed. 13942_ 75-6OW(o) destroyed. 13942_ Hvy. Deuterium Engine destroyed. 13942_ Arc Projector destroyed. 14123_ The unstable cave ceiling collapses. 14258_ Acquired Prototype Protection. 14560_ Discarded Exp. Targeting Computer. 14749_ Identified Zio. Light Carapace. 14771_ Hrd. Heavy Armor Plating destroyed. 14772_ as-96983: "DSI9AT1D G8OHIBQ29FWG 26R186 QD12WHW8W33 TDK1 81FTS" 14774_ Lgt. Treads destroyed. 14777_ Hvy. Armor Plating destroyed. 14784_ Arc Projector destroyed. 14787_ Zio. Light Carapace destroyed. 14787_ Arc Projector destroyed. Map ----- +----------------------------------------------------+ | ???????????????????????????????????????????????? | | ???????????????????????????????????????????????? | | ???????????????????????????????????????????????? | | ???????????????????????????????????????????????? | | ???????????????????????????????????????????????? | | ???????????????????????????????????????????????? | | ?????????????????????? ????????????????????? | | ???????????????????? #????????? ????????? | | ????????????????? ##???????? #???????? | | ??????????????? ]] #???????# #???????? | | ????????????? [ #??????? ##??????? | | ????????????? ] #??????? #??????? | | ????????????[ ! #??????? ##?????? | | ???????????? l! #???????# ??????? | | ??????????? = #???????# ??????? | | ??????????? g #??????## ???????? | | ??????????? g = ##?????# #???????? | | ?????????? = #?????# #???????? | | ?????????? #?????# #???????? | | ????????? g #?????# ##??????? | | ????????? ####### #####??? | | ?????????G = ##?? | | ?????????"" == ### | | ????????" M ## | | ?????????" ;;######## | | ????????" h @M ###??????## | | ?????????" ##?????????# | | ????????" # # #??????????###### | | ????????? #### ## ## ##???????????????## | | ?????????"" #????# ?# ?###?????????????????## | | ??????????? ??????#??# ??????????????????????## | | ???????????????????????#???????????????????????? | | | | | | | | | | | | | | | | | | | | | | | | | | | | | | | | | | | | | +----------------------------------------------------+ Best States ------------- Heat Dissipation 79 Energy Generation 19 Energy Capacity 310 Matter Stores 300 Matter Capacity 300 Sight Range 16 Robot Scan Range 19 Terrain Scan Density 10 Additional Mass Support 12 Armor Coverage 1000 Evasion (%) 41 Targeting Accuracy 24 Melee Accuracy 12 Recoil Reduction 3 Defensive Hacking 10 Trap Extractor Capacity 4 Item Schematics ----------------- Huge Storage Unit | -10/Materials | Hacked Mak. System Shield | -7/Zion | Archive Mak. Terrain Scan Processor | -7/Zion | Archive 0b10 Decoder Chip [Skirmisher] | -7/Zion | Archive Plasma Flamer | -7/Zion | Archive Imp. Shield Generator | -7/Zion | Archive Power Amplifier | -7/Zion | Archive Mak. Leg | -7/Zion | Archive Mak. Trap Scanner | -7/Zion | Archive Imp. Plasma Cutter | -7/Zion | Archive Microactuators | -7/Zion | Archive Hpw. Shock Rifle | -7/Zion | Archive Nuclear Pulse Thruster | -7/Zion | Archive Imp. Medium Armor Plating | -7/Zion | Archive Mak. Spear | -7/Zion | Archive Proton Cannon | -7/Zion | Archive Robot Schematics ------------------ K-01 Serf | -7/Zion | Archive T-07 Excavator | -7/Zion | Archive H-88 Terminator | -7/Zion | Archive Fabricated ------------ Nothing Alien Tech Used ----------------- None Achievements -------------- None Challenges ------------ None Game ------ Seed FieldSmartbombShotgun Manual? 0 Play Time 01:11:40 Cumulative 198.7 hours Start 2023.01.14 @ 13:44:16 End 2023.01.14 @ 14:55:57 Sessions 1 Manual Loads 0 Difficulty Rogue Special Mode None Game No. 273 Rogue 273 Adventurer 0 Explorer 0 Win Type - Total 5 Types 1/0/3/0/0/0/1/0/0 Lore% 73 Gallery% 84 Achievement% 64 Wizard Run 0 Options --------- ASCII 0 Keyboard 0 Movement Numpad Keybinds 0 Fullscreen 1 Font 18/SmallcapsGlow Map View 76x50 Tactical HUD 1 Map Filters NONE Filters NONE Steam 1 RUN: 7cc29b67-99d6-4393-b3ca-bc58bd7e0966